{"text_format":"1","workbook":"xlsx","n_sheets":1,"sheets":["ALCANCE"],"not_rendered":{"charts":0,"images":1,"macros":1,"external_links":0,"defined_names":5,"comments":0,"pivot_tables":0},"unopened":[],"bounds":{"document_bytes":16777216,"sheet_cells":100000,"rows_first":2000,"rows_last":500,"rows_between":2000,"halvings":0,"cell_chars":16384,"cell_head_chars":4096},"cells_cut":0,"cells_raw":0,"read":"whole","date_system":"1900"}

{"sheet":"ALCANCE","index":0,"n_rows":206,"n_cols":37,"rows_kept":206,"cut":false,"hidden":false,"merged":[[0,0,1,0],[87,2,88,2],[87,3,88,3],[3,4,5,7],[18,4,18,7],[19,5,22,7],[21,4,22,4],[86,5,86,7],[96,5,102,7],[90,2,91,2],[90,3,91,3],[92,4,92,7],[98,2,98,4],[97,2,97,4],[96,2,96,4],[99,2,99,4],[93,2,94,2],[93,3,94,3],[0,1,0,7],[1,1,1,7],[84,6,84,7],[85,6,85,7],[96,0,96,1],[97,0,97,1],[31,8,33,8],[77,3,77,7],[19,4,20,4],[38,0,38,7],[56,0,56,7],[7,8,17,8],[25,4,25,5],[25,6,25,7],[27,2,27,7],[23,6,23,7],[24,6,24,7],[31,0,31,1],[32,0,32,1],[30,0,30,1],[36,0,36,1],[37,0,37,1],[23,8,25,8],[25,2,25,3],[28,4,28,7],[75,0,75,7],[27,0,27,1],[10,6,10,7],[11,4,11,5],[11,6,11,7],[126,6,126,7],[126,2,126,3],[126,4,126,5],[126,0,127,1],[118,0,118,1],[63,2,63,3],[64,2,64,3],[65,2,65,3],[66,2,66,3],[67,2,67,3],[68,2,68,3],[69,2,69,3],[70,2,70,3],[71,2,71,3],[108,2,108,7],[109,2,109,7],[110,2,110,7],[115,0,115,7],[90,0,91,1],[92,0,92,1],[89,0,89,1],[93,0,94,1],[94,6,94,7],[84,2,84,4],[113,0,113,7],[119,6,119,7],[105,2,105,7],[106,2,106,7],[100,2,100,4],[104,2,104,7],[120,0,124,0],[119,0,119,1],[125,0,125,1],[101,2,101,4],[98,0,98,1],[2,0,2,7],[6,2,6,7],[19,2,19,3],[20,2,20,3],[7,4,7,5],[7,6,7,7],[8,6,8,7],[8,4,8,5],[9,4,9,5],[9,6,9,7],[10,4,10,5],[80,0,80,1],[24,4,24,5],[89,4,89,7],[50,2,50,3],[23,2,23,3],[30,2,30,7],[24,2,24,3],[22,0,22,1],[23,0,25,1],[22,2,22,3],[26,0,26,1],[23,4,23,5],[90,8,92,8],[87,8,89,8],[80,2,80,4],[34,0,34,7],[87,0,88,1],[33,0,33,1],[29,0,29,1],[47,2,47,3],[48,2,48,3],[49,2,49,3],[86,2,86,4],[51,2,51,3],[57,0,74,1],[57,2,57,3],[58,2,58,3],[59,2,59,3],[60,2,60,3],[61,2,61,3],[62,2,62,3],[72,2,72,3],[73,2,73,3],[81,0,83,1],[85,0,85,1],[85,2,85,4],[84,0,84,1],[54,0,54,1],[55,0,55,1],[76,0,76,1],[78,0,78,1],[79,0,79,1],[79,2,79,7],[28,2,28,3],[29,2,29,7],[35,0,35,7],[53,0,53,7],[28,0,28,1],[44,2,44,3],[39,0,52,1],[33,2,33,7],[39,2,39,3],[40,2,40,3],[41,2,41,3],[42,2,42,3],[43,2,43,3],[45,2,45,3],[46,2,46,3],[77,0,77,1],[83,6,83,7],[12,4,12,5],[12,6,12,7],[13,4,13,5],[13,6,13,7],[16,4,16,5],[16,6,16,7],[17,6,17,7],[14,4,14,5],[14,6,14,7],[15,4,15,5],[15,6,15,7],[17,4,17,5],[6,0,6,1],[3,0,3,1],[4,0,4,1],[5,0,5,1],[5,2,5,3],[18,0,18,1],[19,0,19,1],[20,0,20,1],[21,0,21,1],[3,2,3,3],[4,2,4,3],[21,2,21,3],[7,0,17,0],[18,2,18,3],[127,2,127,3],[127,4,127,5],[80,5,80,7],[93,8,95,8],[95,0,95,1],[95,4,95,7],[99,0,102,1],[103,0,103,1],[104,0,104,1],[105,0,107,1],[108,0,110,1],[117,0,117,7],[102,2,102,4],[103,6,103,7],[103,2,103,4],[107,2,107,7],[114,0,114,7],[112,0,112,7],[111,0,111,7],[99,8,102,8],[105,8,107,8],[108,8,110,8],[86,0,86,1],[127,6,127,7]]}
[null,"AÑO FISCAL 2017 INFORMACIÓN DEL ALCANCE - PROYECTOS E INICIATIVAS",null,null,null,null,null,null,null,null,"País","Región","Miembro CI o Miembro afiliado","Tipo de donante","Donante","Fecha inicial-final","Clasificación por tipo de programa","Tipo de resultados","Alcance georgráfico","Sí/No","Mes","Año","Año","Promoción","Tipo de promoción","Innovación","Ampliar","Efectivo/Voucher","Violencia de género","Indicador de género","Indicador de gobernabilidad","Resiliencia","Resiliencia","Vulnerabilidad frente al cambio climático","Asociaciones","Tipo de socio","OSCs"]
[null,"Favor llenar el formulario contestando todas las preguntas que sean pertinentes y apropiadas para cada proyecto y cada iniciativa implementados en su país durante el año fiscal 2017 (1 de julio de 2016 - 30 de junio de 2017), teniendo en cuenta las siguientes consideraciones:\n\nCon el fin de simplificar el proceso de recopilación de datos, el formulario contiene macros hacen el proceso de reporte más dinámico y permiten desplegar u ocultar las preguntas, dependiendo de los datos que brinde. Favor, asegúrese de \"activar los macros\" al abrir el formulario en Excel. Si no puede activarlos en Excel, ¡no se preocupe! El formulario mostrará el contenido adecuadamente. Únicamente no se desplegarán/ocultarán las preguntas según lo  que sea pertinente a su proyecto.\n\nLa columna I contiene una guía adicional para llenar el formulario, favor consúltela mientras llena el formulario. Además, si hay secciones en donde no hay datos que proporcionar, déjelos en blanco (no hay necesidad de agregar ceros).\nFavor asegúrese que toda la información dada haya sido examinada y validada por todo el personal clave involucrado en el proyecto o iniciativa. Una vez que la información ha sido completada, se generará un resumen al final del formulario. Favor revise el resumen ya que le mostrará una imagen de \"la historia\" que narra la data reportada en el formulario, y además le ayudará a identificar datos ausentes o incoherentes.\n\nLos proyectos incluyen cualquier acción particular dentro de un plazo bien definido, así como un conjunto claro de objetivos y resultados vinculados a resultados/impactos esperados en una población objetivo. Un proyecto normalmente se vincula a una relación contractual con una fuente de financiamiento particular, y a un número específico de socios y actores claves a quienes se debe totalmente. Las iniciativas incluyen cualquier conjunto de acciones e intervenciones de diversas características, implementado por CARE y nuestros aliados, que implica un compromiso hacia los grupos marginados y vulnerables específicos para lograr un impacto duradero a gran escala sobre las causas fundamentales de la pobreza, y la injusticia social y de género. Una iniciativa trasciende el ámbito de los proyectos y normalmente se enfoca en la incidencia política, la investigación o acciones de desarrollo de capacidades. Por ejemplo, una actividad de incidencia que busca el cambio de políticas más allá del ámbito de un proyecto en particular, en base a la evidencia de varios proyectos o en la evidencia de los socios. ¿Qué sucede cuándo se tiene múltiples proyectos que trabajan para una misma población y existe el riesgo de doble conteo?  Este año, los proyectos e iniciativas que trabajan para una misma población y en una misma ubicación, se pueden agrupar y notificar dentro de un solo formulario PIIRS, especialmente cuando no es posible determinar l traslape de participantes entre los proyectos, y por lo tanto es difícil determinar el doble conteo. Por ejemplo: múltiples respuestas de emergencia hacia una misma población afectada en una misma ubicación; programas compuestos de varios proyectos (que trabajan para una misma población y en la misma ubicación); actividades de grandes promociones compuestas por varias iniciativas similares. Nótese que los proyectos se pueden solamente agrupar según estos parámetros (ej. no pueden ser agrupados por donantes). Finalmente, si decide agrupar proyectos o iniciativas, favor asegúrese de proporcionar información individual del financiamiento en las filas A8 a 18.\n\n- Si tiene dudas sobre cómo agrupar proyectos o iniciativas, o cualquier pregunta al completar el formulario, contáctese con piirs@careinternational.org. Para más detalles, visite: http://careglobalmel.care2share.wikispaces.net/PIIRS+FY17",null,null,null,null,null,null,null,null,"(Seleccione de la lista)","(Seleccione de la lista)","(Seleccione de la lista","(Seleccione de la lista)","(Seleccione de la lista)","2016-07-01","(Seleccione de la lista)","(Seleccione de la lista)","(Seleccione de la lista)","(Seleccione de la lista)","(Seleccione de la lista)","(Seleccione de la lista)","(Seleccione de la lista)","(Seleccione de la lista)",null,"(Seleccione de la lista)","(Seleccione de la lista)","(Seleccione de la lista)","(Seleccione de la lista)","(Seleccione de la lista)","(Seleccione de la lista)","(Seleccione de la lista)","(Seleccione de la lista)","(Seleccione de la lista)","(Seleccione de la lista)","(Seleccione de la lista)","(Seleccione de la lista)"]
["Sección 1: Información general de un proyecto o iniciativa (diseño)\nEsta sección se enfoca en la información general relacionada con el diseño de un proyecto o iniciativa. La información para estas secciones se pueden obtener de la propuesta de proyectos, contratos, IPIA u otros documentos oficiales.\nFavor consultar las notas de guía en cada pregunta o en la Columna I, para mayor referencia al momento de llenar el formulario.",null,null,null,null,null,null,null,null,null,"Afghanistan","África - Oriental y Central","CARE Australia","Gobierno","Bill & Melinda Gates Foundation","2017-06-30","Humanitario Salud Sexual, Reproductiva y Materna (SRMH)","Desarrollo","Subnacional","SÍ","Enero",2016,2017,"Incidencia politíca intensiva",null,"Probó nuevas maneras de luchar contra la pobreza y midió los resultados de la innovación","Vinculó y trabajó con alianzas estratégicas y socios para llevar a escala soluciones probadas y efectivas","Distribución de efectivo","Se enfocó totalmente en la violencia de género","i) El proyecto/iniciativa NO trabajó con los roles y relaciones de género","i) El proyecto/iniciativa NO consideró la gobernabilidad ni las relaciones de poder","i) El proyecto/ iniciativa NO abordó la resiliencia de individuos y comunidades en riesgo","Incluyó acciones para incrementar la resiliencia a fondo","Abordó plenamente la vulnerabilidad causada por cambio climático","Todas las actividades se implementaron con y/o a tráves de socios","Organización(es) de base","El fortalecimiento de la sociedad civil fue uno de los objetivos explícitos dentro del proyecto/iniciativa, y llevó a cabo acciones de este tipo"]
["País (lista alfabética en inglés)",null,"(Seleccione de la lista)",null,null,null,null,null,null,null,"Albania","África - Meridional","CARE Canada","Fundación","ECHO - Comisión Europea de Ayuda Humanitaria y Protección Civil",null,"Humanitario Una Vida Libre de Violencia (GBV)","Humanitario","Nacional","NO","Febrero",2017,2018,"Incidencia politíca moderada",null,"Probó nuevas maneras de luchar contra la pobreza, pero no midió los resultados de la innovación","Llevó a escala soluciones probadas y efectivas, por cuenta propia","Distribución de vouchers","Incorporó la violencia de género en otras actividades/áreas temáticas","ii) El proyecto/iniciativa TRABAJÓ con los roles y relaciones de género existentes","ii) El proyecto/ iniciativa TRABAJÓ DENTRO de las instituciones, estructuras y relaciones de poder existentes","ii) El proyecto/iniciativa TRABAJÓ abordando la resiliencia de individuos y comunidades en riesgo.","Incluyó acciones para incrementar la resiliencia parcialmente","Abordó parcialmente la vulnerabilidad causada por cambio climático","La mayoría de actividades se implementaron  con y/o a través de socios","ONG(s) internacional(es)","El fortalecimiento de la sociedad civil no fue uno de los objetivos explícitos dentro del proyecto/iniciativa, sin embargo llevó acabo acciones de este tipo"]
["Región",null,"(Seleccione de la lista)",null,null,null,null,null,null,null,"Algeria","África - Occidental","CARE Danmark","Corporación","UE - Unión Europea (además de ECHO)",null,"Humanitario Seguridad Alimenticia y Nutricional y Resiliencia frente al Cambio Climático","A la vez resultados/impactos de desarrollo y humanitarios","Varios países",null,"Marzo",null,null,"Poca Incidencia politíca o nula",null,"No desarrolló ninguna innovación","No llevó soluciones a escala","A la vez distribución de efectivo y vouchers","No abordó la violencia de género","iii) El proyecto/iniciativa DESAFIÓ los roles y relaciones de género existentes","iii) El proyecto/iniciativa DESAFIÓ las instituciones, estructuras y relaciones de poder","iii) El proyecto/iniciativa TRABAJÓ abordando la resiliecia de individuos y comunidades en riesgo, así como las causas subyacentes de los riesgo que enfrentan","No incluyó acciones para incrementar la resiliencia","No tuvo una estrategia para abordar la vulnerabilidad causada por el cambio climático","Algunas actividades se implementaron con y/o a través de socios","Sindicato(s)","El proyecto/iniciativa no llevó acabo ninguna acción en este año fiscal para fortalecer a la sociedad civil"]
["Código proyectos/iniciativas en el sistema PIIRS (si aplica)",null,2323,null,null,null,null,null,"Si su proyecto o iniciativa ya reportó datos en el PIIRS el año fiscal pasado (FY16), favor insertar el código de 4 dígitos asignado en el sistema PIIRS. Puede consultar en https://piirs.care.org",null,"Andorra","Asia y el Pacífico","CARE Deutschland-Luxemburg","Apoyo individual","Gobierno - Australia",null,"Humanitario Acceso y Control de Recursos Económicos",null,"Regional",null,"Abril",null,null,null,null,null,null,null,null,null,null,null,null,"","CARE implementó todos las actividades directamente","Gobierno(s) local(es)"]
["Nombre del proyecto/iniciativa",null,null,null,null,null,null,null,"Documente el nombre del proyecto o iniciativa desde su diseño, propuesta, contrato, informe o demás documentación oficial.",null,"Angola","Lationamérica y el Caribe","CARE Egypt","Agencia multilateral","Gobierno - Austria",null,"Humanitario Otros",null,"Global",null,"Mayo",null,null,null,null,null,null,null,null,null,null,null,null,"",null,"Alianza(s) local(es)/Plataforma(s)/Red(es) de ONGs/CSOs"]
["Información de donante(s)","Identificación del proyecto/iniciativa, número o código, según el sistema de codificación de su país","Miembro de CARE Internacional asociado al proyecto/iniciativa (en calidad de titular del contrato o principal)","Tipo de donante","Nombre genérico de donante(s)\nFavor marque OTRO si el donante del proyecto/iniciativa que documenta no se encuentra en la lista, y proporcione el nombre completo en la siguiente pregunta",null,"Nombre completo de donante(s)\nFavor indique el nombre completo del donante(s). Por ejemplo: \"Canadá Department of Foreign Affairs, Trade and Development\" en lugar de \"DFATD\".",null,"Favor documentar todas las fuentes de financiamiento aplicables al proyecto o iniciativa.\n\n",null,"Antigua and Barbuda","Medio Oriente, Norte de África y Europa","CARE France","Otros","Gobierno - Bélgica",null,"Desarrollo Salud Sexual, Reproductiva y Materna (SRMH)",null,"Otros",null,"Junio",null,null,null,null,null,null,null,null,null,null,null,null,"",null,"ONG(s)/OSC(s) local(es)"]
[null,null,"(Seleccione de la lista","(Seleccione de la lista)","(Seleccione de la lista)",null,null,null,null,null,"Argentina","Norteamérica","CARE India",null,"Gobierno - Canada",null,"Desarrollo Una Vida Libre de Violencia (GBV)",null,null,null,"Julio",null,null,null,null,null,null,null,null,null,null,null,null,null,null,"Cadena(s) mediática(s) y periodística(s)"]
[null,null,"(Seleccione de la lista","(Seleccione de la lista)","(Seleccione de la lista)",null,null,null,null,null,"Armenia",null,"CARE Indonesia",null,"Gobierno - Dinamarca",null,"Desarrollo Seguridad Alimenticia y Nutricional y Resiliencia frente al Cambio Climático",null,null,null,"Agosto",null,null,null,null,null,null,null,null,null,null,null,null,null,null,"Organismo(s) multilateral(es)"]
[null,null,"(Seleccione de la lista","(Seleccione de la lista)","(Seleccione de la lista)",null,null,null,null,null,"Aruba",null,"CARE Japan",null,"Gobierno - Finlandia",null,"Desarrollo Acceso y Control de Recursos Económicos",null,null,null,"Septiembre",null,null,null,null,null,null,null,null,null,null,null,null,null,null,"Gobierno nacional"]
[null,null,"(Seleccione de la lista","(Seleccione de la lista)","(Seleccione de la lista)",null,null,null,null,null,"Australia",null,"CARE Morocco",null,"Gobierno - Francia",null,"Desarrollo Otros",null,null,null,"Octubre",null,null,null,null,null,null,null,null,null,null,null,null,null,null,"Sector privado"]
[null,null,"(Seleccione de la lista","(Seleccione de la lista)","(Seleccione de la lista)",null,null,null,null,null,"Austria",null,"CARE Nederland",null,"Gobierno - Alemania ",null,null,null,null,null,"Noviembre",null,null,null,null,null,null,null,null,null,null,null,null,null,null,"Alianza(s) regional(es)/Plataforma(s)/ Red(es) de ONG(s)/OSC(s)"]
[null,null,"(Seleccione de la lista","(Seleccione de la lista)","(Seleccione de la lista)",null,null,null,null,null,"Azerbaijan",null,"CARE Norge",null,"Gobierno - India",null,null,null,null,null,"Diciembre",null,null,null,null,null,null,null,null,null,null,null,null,null,null,"Movimiento social"]
[null,null,"(Seleccione de la lista","(Seleccione de la lista)","(Seleccione de la lista)",null,null,null,null,null,"Bahamas",null,"CARE Österreich",null,"Gobierno - Irlanda",null,null,null,null,null,null,null,null,null,null,null,null,null,null,null,null,null,null,null,null,"Universidad/Institutos de investigación"]
[null,null,"(Seleccione de la lista","(Seleccione de la lista)","(Seleccione de la lista)",null,null,null,null,null,"Bahrain",null,"CARE Peru",null,"Gobierno - Japón",null,null,null,null,null,null,null,null,null,null,null,null,null,null,null,null,null,null,null,null,"Otros"]
[null,null,"(Seleccione de la lista","(Seleccione de la lista)","(Seleccione de la lista)",null,null,null,null,null,"Bangladesh",null,"CARE UK",null,"Gobierno - Luxemburgo"]
[null,null,"(Seleccione de la lista","(Seleccione de la lista)","(Seleccione de la lista)",null,null,null,null,null,"Belarus",null,"CARE USA",null,"Gobierno - Holanda"]
["Fecha inicial del proyecto/iniciativa (dd/mm/aa)",null,null,null,null,null,null,null,null,null,"Belgium",null,"Chrysalis (Sri Lanka)",null,"Gobierno - Noruega"]
["Fecha final del proyecto/iniciativa (dd/mm/aa)",null,null,null,{"$f":"IF(C21=\"\",IF(C20<P2,\"La fecha de finalización no es válida para el periodo de este informe, favor revise\",\"\"),IF(C21<P2,\"La fecha de finalización no es válida para el periodo de este informe, favor revise\",\"\"))","v":"La fecha de finalización no es válida para el periodo de este informe, favor revise"},null,null,null,null,null,"Belize",null,"Raks Thai Foundation",null,"Gobierno - Perú"]
["(En caso de prorroga o reforma) Nueva fecha final (dd/mm/aa)",null,null,null,null,null,null,null,null,null,"Benin",null,"CI Secretariat",null,"Gobierno - Suecia"]
["Clasificación por tipo de programa\n(Desde su sistema financiero) Favor indicar el área programática predominante en la cual se concentra la inversión del programa/iniciativa",null,"(Seleccione de la lista)",null,null,null,null,null,"Favor obtener esta información del sistema financiero oficial de su país o del IPIA correspondiente al proyecto. Como acordado por los equipos financieros de CARE, cada proyecto o iniciativa tiene una \"Clasificación por Tipo de Programa\" única que ha sido asignada desde el desarrollo de la propuesta o al momento de firmar el contrato y en que se asignaron fondos. El propósito principal de la Clasificación por Tipo de Programa es poder comunicar y explicar, con la mayor precisión posible, la manera de invertir de CARE  en sus prioridades programáticas. Cada proyecto sólo puede ser categorizado bajo UNA prioridad programática, por lo tanto es importante considerar SOLAMENTE  la esfera programática PREDOMINANTE sobre la cual se centran los esfuerzos e inversiones, sin importar si todas las acciones se implementan por CARE o con/a través de socios. ",null,"Bhutan",null,"No CARE member related to the project/initiative",null,"Government - Suiza"]
["(Desde su sistema financiero)\nTotal del presupuesto para la duración del proyecto/iniciativa (en dólares americanos) ",null,null,null,null,null,null,null,"Documente la información del contrato del proyecto. Esto incluye el presupuesto total por la duración del proyecto, no del año fiscal.",null,"Bolivia",null,null,null,"Gobierno - Tailandia"]
["Información de contactos del personal clave afín al proyecto/iniciativa",null,"Nombre",null,"Puesto",null,"e-mail",null,"Incluya información de contacto de hasta dos miembros del personal - pueden ser de Oficinas Nacionales o Miembros CI",null,"Bosnia and Herzegovina",null,null,null,"Gobierno - Reino Unido"]
[null,null,null,null,null,null,null,null,null,null,"Botswana",null,null,null,"Gobierno - EEUU"]
[null,null,null,null,null,null,null,null,null,null,"Brazil",null,null,null,"El Fondo Mundial de lucha contra el sida, la tuberculosis y la malaria"]
["¿El proyecto/iniciativa enfoca sus acciones al trabajo de desarrollo a largo plazo, trabajo humanitario o ambos?\n\nNota importante: El formulario ocultará automáticamente todas las preguntas correspondientes a las áreas en donde se haya escogido NO. Favor asegúrese de haber elegido las pertinentes.",null,"Humanitario","(Seleccione de la lista)","Desarrollo a largo plazo","(Seleccione de la lista)","Ambos Humanitario y Desarrollo a largo plazo",{"$f":"IF(D27=\"SÍ\",IF(F27=\"SÍ\",\"SÍ\",\"NO\"),IF(D27=\"NO\",IF(F27=\"NO\",\"Favor seleccione SÍ ya sea para humanitario o para desarrollo a largo plazo\",\"NO\"),\"\"))","v":""},"Favor indique si el proyecto tiene objetivos humanitarios, de desarrollo a largo plazo o ambos.",null,"Brunei",null,null,null,"El Banco Mundial"]
["¿Cuál el objetivo principal del proyecto/iniciativa? Favor describa",null,null,null,null,null,null,null,"Documente el objetivo del proyecto (nivel más alto de impacto/resultado deseado) desde la propuesta, contrato, o cualquier otro documento oficial",null,"Bulgaria",null,null,null,"ONU - Naciones Unidas"]
["Seleccione de la lista el ámbito geográfico del proyecto/iniciativa",null,"(Seleccione de la lista)",null,null,null,null,null,"Seleccione una opción de la lista del alcance geográfico. ",null,"Burkina Faso",null,null,null,"Otros"]
["Favor describa la ubicación específica del proyecto/iniciativa (ej. países, regiones, provincias, ciudades o municipios)",null,null,null,null,null,null,null,"Describa las ciudades, municipios, comunidades donde el proyecto implementa actividades y /o busca impacto.",null,"Burma"]
["Favor describa el grupo de impacto principal del proyecto/iniciativa, en otras palabras, las personas que se espera experimenten cambios positivos y duraderos respaldados por el proyecto/iniciativa",null,null,null,null,null,null,null,"Describa la población principal para quién el proyecto aspira tener un impacto.",null,"Burundi"]
["Indique el número por sexo de participantes directos que se espera mientras dure el proyecto/iniciativa.\n\n(consulte la guía en la columna H para las definiciones y ejemplos)",null,"# mujeres y niñas",null,"# hombres y niños",null,"# Total",null,"No hay una regla única que defina los participantes directos o indirectos, ya que las definiciones pueden variar según la naturaleza y las acciones del proyecto o iniciativa. Sin embargo, a continuación se muestran conceptos o ejemplos importantes que ayuden a definirlos.\nPARA PROYECTOS \nParticipantes directos en proyectos incluye todos los individuos para quienes CARE busca facilitar un cambio, están directamente involucrados en actividades implementadas por el proyecto, reciben apoyo, servicios, bienes, recursos o demás, directamente de CARE o a través de un socio. CARE se ha comprometido con los participantes directos para mostrar mejoras y medir cambios durante el período de un proyecto. Ejemplos de diferentes tipos de proyectos\n- En proyectos humanitarios, los participantes directos son con frecuencia las personas atendidas según una estrategia de respuesta, tales como los beneficiarios (de asistencia) o participantes activos (en capacitaciones, comités, etc.)\n- En proyectos de desarrollo de implementación directa, los participantes directos son con frecuencia el recuento de la población atendida por el suministro de servicios o bienes, recursos y demás\n- En proyectos de asistencia técnica en dónde CARE no llega a las personas directamente pero apoya a otra entidad para que lo haga, los participantes directos se pueden definir mediante un estimado sistemático de las personas en base a datos secundarios o datos de censos, dirigidos a los segmentos de la población que se involucran efectivamente en las intervenciones de proyectos\nParticipantes indirectos en proyectos incluyen todos los individuos que no están directamente involucrados con las actividades del proyecto, NO reciben apoyo, servicios, bienes, ni recursos directos del proyecto, PERO se benefician de algún modo por el mismo. Ejemplos:\n- Todos los miembros de una familia/hogar de un participante directo, que no están directamente involucrados con las actividades del proyecto\n- Miembros de la comunidad que no están directamente involucrados con las actividades del proyecto (ej. aquellos que han adoptado una innovación que aprendieron de un participante directo).\n \nPARA INICIATIVAS\nParticipantes directos en iniciativas podrían incluir aquellos individuos que están directamente dedicados a las acciones de cambios en políticas o normas sociales.  Esto incluye personas que tiene un papel clave en el diseño, mejora, cambio, aplicación de políticas, o influencia en las normas sociales, así como quienes se benefician directamente de un cambio de políticas. Ejemplos de participantes directos en iniciativas:\n- Parlamentarios\n- Líderes comunitarios\n- Minorías o grupos específicos que de por sí se benefician de un cambio de políticas\n- Gestores empresariales\n- Representantes de la sociedad civil\nParticipantes indirectos en iniciativas incluirían aquellos participantes establecidos por el \"efecto multiplicador\" de las acciones de la iniciativa. Este quiere decir que los individuos se beneficiarían potencialmente de los cambios de políticas o normas sociales que la iniciativa promueve mediante promoción, investigación, fortalecimiento organizacional o estrategias de comunicación. \n- receptores de campañas de medios de comunicación\n- Grupos potenciales que se beneficiarían o se verían influenciados por un cambio de políticas (ej. el número estimado de mujeres en un distrito que podría acceder a servicios, como resultado de un cambio de políticas)\n-Demografía relacionada con la política (ej. número de niños en edad escolar en un lugar específico en donde un política de educación podría llevar al cambio)\n\nNOTA IMPORTANTE: Cuando existen varios proyectos trabajando para una misma población, el cálculo de participantes directos e indirectos debe restar la duplicación del total del alcance.",null,"Cambodia"]
["Indique el número de participantes indirectos que espera mientras dura el proyecto/iniciativa.\n\n(consulte la guía en la columna H para definiciones y ejemplos)",null,"# mujeres y niñas",null,"# hombres y niños",null,"# Total",null,null,null,"Cameroon"]
["Favor describa quiénes son los participantes directos e indirectos, y cómo fueron calculados\n\nSi tiene dudas de cómo definir a los participantes directos e indirectos en su proyecto/iniciativa, favor contacte piirs@careinternational.org",null,null,null,null,null,null,null,null,null,"Canada"]
["Sección 2: Información del año fiscal - Sectores/temas y participantes alcanzados durante el año fiscal\nEsta sección se enfoca en la información correspondiente a la ejecución del proyecto/iniciativa durante el año fiscal. La información de estas secciones se puede obtener de los informes de avance, sistemas de seguimiento o cualquier otra fuente oficial. Favor consulte las guías en la Columna I para mayor referencia al momento de llenar el formulario.",null,null,null,null,null,null,null,null,null,"Cape Verde"]
["Sectores/temas humanitarios",null,null,null,null,null,null,null,null,null,"Central African Republic"]
["Número total de participantes directos del proyecto/iniciativa del año fiscal (humanitario)",null,"# mujeres y niñas",null,"# hombres y niños",null,"# Total",null,"Favor consulte la celda I32 de este formulario para definiciones y ejemplos de participantes directos",null,"Chad"]
["Número total de participantes indirectos del proyecto/iniciativa del año fiscal (humanitario)",null,"# mujeres y niñas",null,"# hombres y niños",null,"# Total",null,"Favor consulte la celda I32 de este formulario para definiciones y ejemplos de participantes indirectos",null,"Chile"]
["Favor seleccione SÍ para todos los temas/sectores para los cuales el proyecto/iniciativa aportó acciones o estrategias en el año fiscal, y documentó el número de personas directa y/o indirectamente alcanzadas en cada una de ellas.",null,null,null,null,null,null,null,null,null,"China"]
["Temas/sectores humanitarios para los cuales el proyecto/iniciativa aspira aportar acciones o estrategias, llegar a los participantes y generar resultados\n\nFavor seleccione SÍ de la lista y documente el número de participantes que no se agregarán dentro de los temas/sectores, por lo tanto, no hay riesgo de duplicación entre sectores. Puede documentar todos aquellos que son relevantes para su proyecto/iniciativa.\n\n\n\n\n",null,"Tema/Sector",null,"Sí","Participantes directos alcanzados en el año fiscal","% de participantes mujeres directas","Participantes indirectos alcanzados en el año fiscal",null,null,"Colombia"]
[null,null,"Gestión y coordinación de campamentos",null,"(Seleccione de la lista)",null,null,null,"Incluye actividades tales como la gestión y capacitación del personal; acciones coordinadoras con/para varios interesados; seguimiento de servicios; garantizar el mantenimiento y cuidado del campamento; dotar de alternativas de infraestructura adecuadas; manejo de información; hacer de enlace con las poblaciones afectadas.",null,"Comoros"]
[null,null,"Distribución de efectivo/vouchers",null,"(Seleccione de la lista)",null,null,null,"Incluye efectivo/vouchers de multiuso/incondicionales. Si el efectivo/voucher es para un propósito específico (ej. efectivo para el acondicionamiento de invierno de viviendas para refugiados/desplazados), favor incluya a los participantes SÓLO dentro de los demás sectores humanitarios pertinentes.",null,"Congo, Democratic Republic of"]
[null,null,"Educación",null,"(Seleccione de la lista)",null,null,null,"Incluye facilitar espacios recreativos para niños con artículos culturalmente aplicables; recuperar espacios para la educación; capacitar a docentes; dotar de suministros de enseñanza y aprendizaje",null,"Congo, Republic of the"]
[null,null,"Seguridad Alimenticia y Nutricional",null,"(Seleccione de la lista)",null,null,null,"Incluye asistencia alimenticia para salvar vidas e aumentar el acceso a alternativas locales de abastecimiento de alimentos. También incluye nutrición.",null,"Costa Rica"]
[null,null,"Violencia de género",null,"(Seleccione de la lista)",null,null,null,"Interviene para prevenir y abordar la explotación sexual o la violencia de género.",null,"Cote d'Ivoire"]
[null,null,"Igualdad de género (a parte de violencia de género)",null,"(Seleccione de la lista)",null,null,null,"Transformar los papeles de género; modificar estructuras que mantienen la desigualdad; promover el empoderamiento de la mujer; abordar la división sexual laboral; trabajar con hombres y niños.",null,"Croatia"]
[null,null,"Salud (además de SRMH)",null,"(Seleccione de la lista)",null,null,null,"Incluye facilitar la asistencia médica inmediata en emergencias, incluyendo vacunación, abastecimiento de medicamentos esenciales, botiquines de emergencia y demás suministros de salud esenciales; manejo de enfermedades neonatales e infantiles; control de enfermedades transmisibles; respaldo de la creación de servicios de atención médica esencial y capacitación en prevención de enfermedades.",null,"Cuba"]
[null,null,"Recuperacion de Medios de Vida",null,"(Seleccione de la lista)",null,null,null,"Incluye la recuperación y promoción de activos fijos HH (empleo, infraestructura, insumos agrarios, creación de capacidades, ahorros, recuperación de tierras, etc.).",null,"Curacao"]
[null,null,"Protección",null,"(Seleccione de la lista)",null,null,null,"Garantizar servicios, procedimientos y condiciones para evitar la separación de familias, reclutamiento a las fuerzas armadas, trauma psicológico y demás riesgos, especialmente para mujeres y niños.",null,"Cyprus"]
[null,null,"Salud sexual, reproductiva y materna (SRMH)",null,"(Seleccione de la lista)",null,null,null,"Incluye el paquete mínimo inicial de salud reproductiva, salud materna y neonatal incluida la atención pre y posnatal; parto seguro con parteras capacitadas en atención obstétrica básica y de emergencia; distribución de kits de parto asépticos para mujeres embarazadas; dotación de servicios de planificación familiar incluyendo el asesoramiento y provisión de métodos a corto y largo plazo; cuidados obstétricos de emergencia incluida la atención posaborto; gestión clínica de violaciones; prevención y tratamiento de infecciones de trasmisión sexual/VIH/SIDA; salud sexual reproductiva de adolescentes así como el abordaje de las normas sociales a través del empoderamiento de la mujer y la participación masculina.",null,"Czech Republic"]
[null,null,"Albergue",null,"(Seleccione de la lista)",null,null,null,"Incluye apoyar a las poblaciones afectadas para que accedan o construyan vivienda segura, temporal o permanente; apoyar a familias y comunidades anfitrionas; proporcionar seguridad y dignidad mediante la privacidad; y la distribución de vestimenta y refugio - y vivienda- relacionada a NFI.",null,"Denmark"]
[null,null,"Agua, saneamiento e higiene (WASH)",null,"(Seleccione de la lista)",null,null,null,"Incluye el suministro de agua, saneamiento e higiene (incluido saneamiento e higiene relacionados con NFI) para cubrir las necesidades básicas y detener la propagación de enfermedades en la poblaciones afectadas por desastres.",null,"Djibouti"]
[null,null,"Otros (favor describa)",null,"(Seleccione de la lista)",null,null,null,null,null,"Dominica"]
["Sectores/temas de desarrollo",null,null,null,null,null,null,null,null,null,"Dominican Republic"]
["Número total de participantes directos del proyecto o iniciativa del año fiscal  (desarrollo a largo plazo)",null,"# mujeres y niñas",null,"# hombres y niños",null,"# Total",null,"Favor consulte la celda H32 de este formulario para definiciones y ejemplos de participantes directos",null,"Ecuador"]
["Número total de participantes indirectos del proyecto o iniciativa del año fiscal (desarrollo a largo plazo)",null,"# mujeres y niñas",null,"# hombres y niños",null,"# Total",null,"Favor consulte la celda H32 de este formulario para definiciones y ejemplos de participantes indirectos",null,"Egypt"]
["Favor seleccione SÍ para todos los temas/sectores para los cuales el proyecto/iniciativa aportó acciones o estrategias en el año fiscal, y documentó el número de personas directa y/o indirectamente alcanzadas en cada una de ellas.",null,null,null,null,null,null,null,null,null,"El Salvador"]
["Temas/sectores de desarrollo a largo plazo para los cuales el proyecto/iniciativa aspira aportar acciones o estrategias, llegar a los participantes y generar resultados.\n\nFavor seleccione SÍ de la lista y documente el número de participantes que no se agregarán dentro de los temas/sectores, por lo tanto, no hay riesgo de duplicación entre sectores. Puede documentar todos aquellos que son relevantes para su proyecto/iniciativa.\n\n\n\n\n",null,"Tema/Sector",null,"Sí","Participantes directos alcanzados en el año fiscal","% de participantes mujeres directas","Participantes indirectos alcanzados en el año fiscal",null,null,"Equatorial Guinea"]
[null,null,"Agricultura",null,"(Seleccione de la lista)",null,null,null,"Incrementar la producción de cultivos adoptando prácticas agrícolas sostenibles; mejorar el acceso de agricultores a insumos agrícolas mediante un planteamiento de participación en el mercado.",null,"Eritrea"]
[null,null,"Cambio climático y resiliencia",null,"(Seleccione de la lista)",null,null,null,"Resiliencia comunitaria; adaptación al cambio climático (pérdidas y daños y los enlaces para la reducción de riesgos y emergencias); financiamiento climático; mitigación y desarrollo hipocarbónico; promoción basada en evidencia de acuerdos justos, ambiciosos y jurídicamente vinculantes sobre el cambio climático.",null,"Estonia"]
[null,null,"Conflicto y creación de paz",null,"(Seleccione de la lista)",null,null,null,"Promover la paz sostenible con estrategias lideradas por la comunidad; manejar las relaciones militares civiles sensiblemente",null,"Ethiopia"]
[null,null,"Reducción de riesgos de desastres",null,"(Seleccione de la lista)",null,null,null,"Apoyar para que las comunidades eviten desastres (prevención); reducir el impacto de desastres (mitigación); preparar a las sociedades para que enfrenten los efectos de un desastre potencial (preparación)",null,"Fiji"]
[null,null,"Desarrollo económico (además de WEE)",null,"(Seleccione de la lista)",null,null,null,"Facilitar el acceso a servicios financieros asequibles (ej. Asociaciones de Aldea de Ahorro y Préstamo - VSLA); consolidar vínculos comerciales; diversificar sustentos; promover el desarrollo de empresas sociales, fortalecer la cadena de valor; apoyar la planificación económica local.",null,"Finland"]
[null,null,"Educación",null,"(Seleccione de la lista)",null,null,null,"Identificar y superar las barreras de aprendizaje; capacitar a maestros para mejorar la calidad de la educación; desarrollar y ejecutar programas innovadores de educación; mejorar el acceso y la calidad de la educación.",null,"France"]
[null,null,"Seguridad Alimenticia y Nutricional",null,"(Seleccione de la lista)",null,null,null,"Ayudar a las comunidades a cubrir sus necesidades alimenticias inmediatas; evitar la malnutrición; proporcionar accesos al apoyo y capacitación nutricional; ayudar a las personas a costearse comida sana mediante nuevas oportunidades económicas; ayudar a las comunidades a prepararse mejor frente a la falta de alimentos.",null,"Gabon"]
[null,null,"Violencia de género",null,"(Seleccione de la lista)",null,null,null,"Prevenir la violencia de género; apoyar a los sobrevivientes de violencia de género; promover políticas relacionadas a la violencia de género.",null,"Gambia, The"]
[null,null,"Igualdad de género (además de violencia de género)",null,"(Seleccione de la lista)",null,null,null,"Transformar los papeles de género; modificar las estructuras que mantienen la desigualdad; promover el empoderamiento de la mujer; abordar la división laboral por sexo; trabajar con hombres y niños.",null,"Georgia"]
[null,null,"Salud (además de SRMH)",null,"(Seleccione de la lista)",null,null,null,"Salvaguardar la salud infantil; atención médica y programas de educación para la tuberculosis; superar los obstáculos que enfrentan las personas para ser atendidas.  Nota: Si el proyecto/iniciativa trabaja sobre la Nutrición, documente en Seguridad alimentaria y nutricional",null,"Germany"]
[null,null,"Infraestructuras",null,"(Seleccione de la lista)",null,null,null,"Generar infraestructura social: sistemas de agua y saneamiento, sistemas de riego, carreteras, puentes, energía.",null,"Ghana"]
[null,null,"Gestión de recursos naturales",null,"(Seleccione de la lista)",null,null,null,"Planificación del uso de suelo; gestión del agua; conservación de la biodiversidad; pesca; silvicultura; alternativas de energía eficientes; degradación del suelo; contaminación; manejo de desechos.",null,"Greece"]
[null,null,"Participación y buena gobernabilidad",null,"(Seleccione de la lista)",null,null,null,"Asegurarse de que los gobiernos y entidades públicas escuchen e incorporen las necesidades de los pobres; apoyar a las comunidades locales para movilizarse y dar voz sus peticiones para mejorar los servicios; concienciar los derechos de las personas, fortalecer los espacios en dónde los gobiernos y los ciudadanos pobres puedan reunirse a discutir y negociar una agenda de desarrollo más inclusiva en favor de los pobres, mejorar la transparencia y la responsabilidad de los gobiernos.",null,"Grenada"]
[null,null,"Salud sexual, reproductiva y materna (SRMH)",null,"(Seleccione de la lista)",null,null,null,"Salud sexual, reproductiva y materna; planificación familiar; atención prenatal; acceso a servicios; prevención, detección y tratamiento de infecciones de trasmisión sexual; prevenir el VIH/SIDA; salvaguardar la salud de la mujer durante el embarazo, el parto y el periodo posparto inmediato",null,"Guatemala"]
[null,null,"Agua, saneamiento e higiene (WASH)",null,"(Seleccione de la lista)",null,null,null,"Incrementar el acceso al agua a través de bombas, pozos y contenedores de almacenamiento; abordar las políticas del agua; promover el uso eficiente de los sistemas de agua y saneamiento; mantener pozos, perforaciones y letrinas; acortar el tiempo empleado para buscar agua de fuentes distantes; promover prácticas de higiene.",null,"Guinea"]
[null,null,"Empoderamiento económico de la Mujer (WEE)",null,"(Seleccione de la lista)",null,null,null,"Desarrollo económico y empoderamiento (consulte arriba) con un enfoque en las mujeres",null,"Guinea-Bissau"]
[null,null,"Otros (favor describa)",null,"(Seleccione de la lista)",null,null,null,null,null,"Guyana"]
["Sección 3: Información del año fiscal - Implementación de la estrategia durante el año fiscal\nEsta sección se enfoca en la información correspondiente a la implementación de la estrategia del proyecto/iniciativa durante el año fiscal. La información de estas secciones se puede obtener de los informes de avance, planes de acción, sistemas de seguimiento y demás fuentes oficiales. Favor consultar las guías en la Columna I para mayor referencia al momento de llenar el formulario.",null,null,null,null,null,null,null,null,null,"Haiti"]
["¿Se ha realizado alguna referencia de base o evaluación para este proyecto en el año fiscal? De ser así, favor indique cuándo",null,"(Seleccione de la lista)","Mes","(Seleccione de la lista)","Año","(Seleccione de la lista)",null,"Favor indique si una base de referencia o evaluación se llevó a cabo y (si es así) el mes y año.",null,"Holy See"]
["Si se realizó una referencia de base o evaluación, ¿Se recopiló o documentó evidencia de impactos/resultados/cambios duraderos para cualquiera de los 25 indicadores globales de la Estrategia de Programa de CARE 2020, o para cualquier otro indicador relacionado a los resultados y enfoque de la Estrategia de Programa de CARE 2020? ",null,"(Seleccione de la lista)",null,null,null,null,null,"Indique si se ha planificado una evaluación para el siguiente año fiscal y, si es así, cuándo. Para los proyectos humanitarios favor indique cualquier RTE, examen a posteriori o evaluación similar planificada.",null,"Honduras"]
["¿Se ha planificado alguna evaluación para el próximo año fiscal? De ser así, favor indique para cuándo.",null,"(Seleccione de la lista)","Mes","(Seleccione de la lista)","Año","(Seleccione de la lista)",null,null,null,"Hong Kong"]
["Favor proporcione cualquier otro comentario o información respecto a futuras evaluaciones (cuestiones metodológicas, complejidad de la evaluación, comparación con la referencia de base, apoyo requerido, etc.)",null,null,null,null,null,null,null,null,null,"Hungary"]
["¿En qué medida se dedicó el proyecto/iniciativa a la incidencia política en este año fiscal?",null,"(Seleccione de la lista)",null,null,null,null,null,"Promoción intensiva: El proyecto/iniciativa tiene una estrategia definida/intencional para influir sobre quiénes toman las decisiones acerca del desarrollo, cambio y ejecución de políticas para reducir la pobreza y lograr justicia social.  Promoción moderada: El proyecto/iniciativa implementa ciertas acciones para influir sobre quiénes toman las decisiones acerca del desarrollo, cambio y ejecución de políticas para reducir la pobreza y lograr justicia social. Poca o ninguna promoción: El proyecto/iniciativa implementa poca o ninguna acción para influir sobre quiénes toman las decisiones acerca del desarrollo, cambio y ejecución de políticas para reducir la pobreza y lograr justicia social.",null,"Iceland"]
["Favor indique el tipo de trabajo de incidencia política que desarrolló el proyecto/iniciativa durante el año fiscal (seleccione SÍ para todos los que aplique)",null,"Adopción de una nueva política","(Seleccione de la lista)","Promoción en contra de una política perjudicial","(Seleccione de la lista)","Adopción de un modelo/planteamiento programático de CARE","(Seleccione de la lista)",null,null,"India"]
[null,null,"Implementación de una política existente","(Seleccione de la lista)","Influencia en programas nacionales o internacionales","(Seleccione de la lista)","Influencia en la participación del gobierno en plataformas políticas regionales/mundiales (ONU, OMS)","(Seleccione de la lista)",null,null,"Indonesia"]
[null,null,"Asignación presupuestaria para la política","(Seleccione de la lista)","Otros (favor describa)","(Seleccione de la lista)",null,null,"OTROS puede incluir, por ejemplo: acciones que influyan la adopción de mejores condiciones laborales dentro de empresas",null,"Iran"]
["¿En qué medida el proyecto/iniciativa desarrolló innovaciones para la lucha contra la pobreza y desigualdad en este año fiscal?",null,"(Seleccione de la lista)",null,null,"Favor describa las principales innovaciones",null,null,"Las innovaciones incluyen el desarrollo o apoyo de nuevas formas para la entrega de servicios esenciales, el desarrollo de capacidades, la reducción de riesgos y el empoderamiento de las personas más vulnerables, particularmente las mujeres y niñas. Las innovaciones se basan en una comprensión profunda de los factores que fomentan la pobreza y la injusticia social en cada contexto, poniendo especial atención a las necesidades de las personas más marginadas.",null,"Iraq"]
["¿En qué medida el proyecto/iniciativa vinculó o trabajó con alianzas estratégicas y socios para ampliar y llevar a escala soluciones probadas y efectivas en este año fiscal?",null,"(Seleccione de la lista)",null,null,"Favor describa las soluciones comprobadas que se lelvaron a escala",null,null,"Todo nuestro trabajo busca impactar en las comunidades en las que trabajamos y más allá de ellas. Usamos la evidencia y el aprendizaje de nuestra acción humanitaria y los programas de desarrollo de largo plazo para influir en cambios sociales más amplios. Es a través de este rol que CARE puede contribuir a un impacto más profundo y sostenible, documentando modelos exitosos, potenciando el conocimiento, incidiendo para la adopción y la expansión de enfoques probados, abogando por políticas públicas a favor las personas más pobres, influyendo en tomadores de decisión a todo nivel para el cambio de políticas y prácticas, y mediando el diálogo entre actores.",null,"Ireland"]
["¿En qué medida el proyecto/iniciativa se enfocó en abordar la violencia sexual y de género (GBV) en este año fiscal?",null,"(Seleccione de la lista)",null,null,null,null,null,"Totalmente enfocado en violencia de género: El enfoque primordial del proyecto/iniciativa es abordar la violencia de género y trabajar sistemáticamente con los defensores de los derechos humanos y diversos interesados para garantizar que los mecanismos de prevención, remisión y respuesta sean inclusivos respecto al abanico de personas afectadas por la violencia de género. Incorpora la violencia de género dentro de otras actividades/esferas temáticas: Integra la violencia de género en sus objetivos, aun cuando se enfoca en otros sectores/esferas temáticas (ej. un proyecto se enfoca en mejorar la generación de ingresos de hogares, pero aborda la violencia de género para impedir efectos no deseados y asegurar la seguridad y salud de los participantes, el personal de CARE y sus socios).",null,"Israel"]
["(Del indicador de género) Favor seleccione la afirmación que mejor describe las acciones de este año para el fortalecimiento del empoderamiento de la mujer y la igualdad de género\n\n(Una vez seleccionada su opción, afirmaciones de SÍ/NO aparecerán automáticamente en las celdas grises)",null,"(Seleccione de la lista)","Favor seleccione SÍ para todas las afirmaciones que apliquen al proyecto/iniciativa en este año fiscal",{"$f":"IF(ISNUMBER(SEARCH(\"NO\",$C$88)),\"ANÁLISIS:  El proyecto/iniciativa careció de un análisis de las diferencias de mujeres, hombres, niños y niñas\",IF(ISNUMBER(SEARCH(\"TRABAJÓ CON\",$C$88)),\"ANÁLISIS: El proyecto/iniciativa fue informado por cierto análisis de las diferencias de género de mujeres, hombres, niños y niñas\",IF(ISNUMBER(SEARCH(\"DESAFIÓ\",$C$88)),\"ANÁLISIS: El proyecto/iniciativa fue informado por un análisis profundo de género de las necesidades, roles, relaciones, protección de riesgos y dinámicas de poder diferenciados de y entre mujeres, hombres, niños, niñas\",\"\")))","v":""},"(Seleccione de la lista)",{"$f":"IF(ISNUMBER(SEARCH(\"NO\",$C$88)),\"ACTIVIDADES: Fue imposible adaptar las actividades del proyecto/iniciativa para cubrir las diferentes necesidades de mujeres, hombres, niños y niñas\",IF(ISNUMBER(SEARCH(\"TRABAJÓ CON\",$C$88)),\"ACTIVIDADES: Se adaptó el proyecto/iniciativa a las diferentes necesidades de mujeres, hombres, niños y niñas según se identificaron en el análisis\",IF(ISNUMBER(SEARCH(\"DESAFIÓ\",$C$88)),\"ACTIVIDADES: Se adoptaron las actividades del proyecto/iniciativa para cubrir las distintas necesidades de mujeres, hombres, niños y niñas, avanzando en igualdad de género a través de las tres dimensiones de la Igualdad de Género de CARE\",\"\")))","v":""},"(Seleccione de la lista)","Favor respalde sus respuestas usando el Marcador de Género. El Marcador de Género de CARE es una autoevaluación que mide la incorporación del género dentro de la programación medida a lo largo del Continuo de Género de CARE; desde dañino hasta transformador. Se otorga una nota del 0 al 4 a los proyectos,  ubicándoles directamente en el Continuo. CARE procura que todos los proyectos lleguen a una nota mínima de 2 (sensible a género),  mientras procura alcanzar trabajo transformador. Para las respuestas humanitarias una nota de 2 o mayor demuestra un buen trabajo. El Marcador de Género logrado debería usarse como una oportunidad para reflexionar la manera en la que el proyecto integra el género, y si hay lugar para mejoras, con el objetivo más amplio de verificar el alineamiento con los objetivos estratégicos, y aspirar hacia los mejores resultados posibles para los grupos objetivo.\n\nPara una orientación más detallada del indicador de Género, visite:  http://gender.care2share.wikispaces.net/#CARE%20Gender%20Marker%20(2016)",null,"Italy"]
[null,null,null,null,{"$f":"IF(ISNUMBER(SEARCH(\"NO\",$C$88)),\"PARTICIPACIÓN: Para el proyecto/iniciativa fue imposible asegurar la participación de mujeres, hombres, niños y niñas en ninguno de los siguientes: intercambio de información transparente; toma de decisiones; mecanismos receptivos de retroalimentación \",IF(ISNUMBER(SEARCH(\"TRABAJÓ CON\",$C$88)),\"PARTICIPACIÓN: El proyecto/iniciativa aseguró una participación significativa de mujeres, hombres, niños y niñas en al menos uno de los siguientes: intercambio de información transparente; toma de decisiones; mecanismos receptivos de retroalimentación\",IF(ISNUMBER(SEARCH(\"DESAFIÓ\",$C$88)),\"PARTICIPACIÓN:  El proyecto/iniciativa aseguró una participación significativa de mujeres, hombres, niños y niñas en las tres siguientes: intercambio de información transparente; toma de decisiones; mecanismos receptivos de retroalimentación.\",\"\")))","v":""},"(Seleccione de la lista)",{"$f":"IF(ISNUMBER(SEARCH(\"NO\",$C$88)),\"SISTEMAS M&E: El proyecto/iniciativa no contó con un sistema de seguimiento para ninguno de estos: cambios de roles y relaciones de género, datos desglosados por sexo y edad, consecuencias indeseadas, cambios en riesgos y necesidades de protección\",IF(ISNUMBER(SEARCH(\"TRABAJÓ CON\",$C$88)),\"SISTEMAS M&E: El proyecto/iniciativa tuvo un sistema de seguimiento que abordó datos desglosados por sexo y edad, y los cambios de riesgos y necesidades de protección\",IF(ISNUMBER(SEARCH(\"DESAFIÓ\",$C$88)),\"SISTEMAS M&E: El proyecto/iniciativa tuvo un sistema de seguimiento que abordó todo lo siguiente: cambios de roles y relaciones de género, datos desglosados por sexo y edad, consecuencias indeseadas, cambios en riesgos y necesidades de protección\",\"\")))","v":""},"(Seleccione de la lista)",null,null,"Jamaica"]
["Puntaje del marcador de género",null,{"$f":"IF(ISNUMBER(SEARCH(\"Seleccione\",$C$88)),\"\",IF(ISNUMBER(SEARCH(\"NO\",$C$88)),\"0. Nocivo\",IF(ISNUMBER(SEARCH(\"DESAFIÓ\",$C$88)),IF(E90=4,\"4. Transformador\",IF(E90>1,\"3. Receptivo\",IF(E90<=1,\"Sin score. Favor revise sus respuestas SI\",\"\"))),IF(ISNUMBER(SEARCH(\"TRABAJÓ\",$C$88)),IF(E90=4,\"2. Sensible\",IF(E90>1,\"1. Neutro\",\"0. Nocivo\"))))))","v":""},"Número de respuestas SÍ",{"$f":"COUNTIF(F88:H89,\"Sí\")","v":0},null,null,null,null,null,"Japan"]
["(Del indicador de gobernabilidad) Favor seleccione la afirmación que mejor describe las acciones de este año para la promoción de gobernabilidad inclusiva este año fiscal\n\n(Una vez seleccionada su opción, afirmaciones de SÍ/NO aparecerán automáticamente en las celdas grises)",null,"(Seleccione de la lista)","Favor seleccione SÍ para todas las afirmaciones que apliquen al proyecto/iniciativa en este año fiscal",{"$f":"IF(ISNUMBER(SEARCH(\"NO\",$C$91)),\"ANÁLISIS: El proyecto/iniciativa carecía de un análisis de actores/situación acerca de la necesidad e intereses de distintos grupos poblacionales y responsabilidades de los portadores de poder \",IF(ISNUMBER(SEARCH(\"TRABAJÓ DENTRO\",$C$91)),\"ANÁLISIS: El proyecto/iniciativa proyecto se sustentó en un análisis básico de actores/situación acerca de las necesidades e intereses de distintos grupos poblacionales y responsabilidades de los portadores de poder \",IF(ISNUMBER(SEARCH(\"DESAFIÓ\",$C$91)),\"ANÁLISIS: El proyecto/iniciativa se sustentó en un profundo análisis de poder, economía política o contexto dentro de todo el Marco de Gobernabilidad: ciudadanos empoderados; portadores de poder receptivos, espacios efectivos de negociación.\",\"\")))","v":""},"(Seleccione de la lista)",{"$f":"IF(ISNUMBER(SEARCH(\"NO\",$C$91)),\"ACTIVIDADES: Las actividades del proyecto/iniciativa no pudieron abordar nada del Marco de Gorbernabilidad: ciudadanos empoderados, portadores de poder receptivos, espacios efectivos de negociación.\",IF(ISNUMBER(SEARCH(\"TRABAJÓ DENTRO\",$C$91)),\"ACTIVIDADES: Las actividades del proyecto/iniciativa incluyeron estrategias en al menos uno de los ámbitos del Marco de Gobernabilidad: ciudadanos empoderados; portadores de poder receptivos; espacios efectivos de negociación.\",IF(ISNUMBER(SEARCH(\"DESAFIÓ\",$C$91)),\"ACTIVIDADES: Las actividades del proyecto/iniciativa incluyeron estrategias, o acciones de otros, de todo el Marco de Gobernabilidad: ciudadanos empoderados; portadores de poder receptivos; espacios efectivos de negociación.\",\"\")))","v":""},"(Seleccione de la lista)","Favor respalde sus respuestas usando el Marcador de Gobernabilidad. El Marcador de Gobernabilidad de CARE permite a los equipos autoevaluar la integración de la gobernabilidad inclusiva en la programación, y aspira apoyar a los equipos a evaluar dónde  se encuentran dentro del continuo de la integración de gobernabilidad.  El proceso apunta a motivar la participación, y particularmente el aprendizaje de las formas para mejorar y apoyar más efectivamente la incorporación de la gobernabilidad dentro de toda nuestra programación, de acuerdo a las restricciones y oportunidades contextuales.\n\nPara una orientación más detallada del indicador de Gobernabilidad , visite: http://governance.care2share.wikispaces.net/Governance+Marker",null,"Jordan"]
[null,null,null,null,{"$f":"IF(ISNUMBER(SEARCH(\"NO\",$C$91)),\"INTEGRACIÓN: El proyecto/iniciativa no pudo trabajar con distintos actores (sociedad civil, estado, sector privado), ni distintos niveles (local,subnacional, nacional, etc.)\",IF(ISNUMBER(SEARCH(\"TRABAJÓ DENTRO\",$C$91)),\"INTEGRACIÓN: El proyecto/iniciativa trabajó con distintos actores (sociedad civil, estado, sector privado) en distintos niveles (al menos conectando cambios comunitarios con subnacionales/distritales)\",IF(ISNUMBER(SEARCH(\"DESAFIÓ\",$C$91)),\"INTEGRACIÓN: El proyecto/iniciativa trabajó con varios actores (sociedad civil, estado, sector privado) Y en varios niveles (conectando cambios locales con nacionales).\",\"\")))","v":""},"(Seleccione de la lista)",{"$f":"IF(ISNUMBER(SEARCH(\"NO\",$C$91)),\"RENDICIÓN DE CUENTAS DE CARE: Fue imposible trabajar en alguno de los componentes de rendición de cuentas de CARE (transparencia, participación ciudadana, mecanismos de retroalimentación y gestión de calidad)\",IF(ISNUMBER(SEARCH(\"TRABAJÓ DENTRO\",$C$91)),\"RENDICIÓN DE CUENTAS DE CARE:  El proyecto-iniciativa incluyó al menos 2 componentes de rendición de cuentas de CARE (transparencia, participación ciudadana, mecanismos de retroalimentación y gestión de calidad)\",IF(ISNUMBER(SEARCH(\"DESAFIÓ\",$C$91)),\"RENDICIÓN DE CUENTAS DE CARE: El proyecto-iniciativa incluyó los 4 componentes de rendición de cuentas de CARE (transparencia, participación ciudadana, mecanismos de retroalimentación y gestión de calidad)\",\"\")))","v":""},"(Seleccione de la lista)",null,null,"Kazakhstan"]
["Puntaje del marcador de gobernabilidad",null,{"$f":"IF(ISNUMBER(SEARCH(\"Seleccione\",$C$91)),\"\",IF(ISNUMBER(SEARCH(\"NO\",$C$91)),\"0. No toma en cuenta\",IF(ISNUMBER(SEARCH(\"DESAFIÓ\",$C$91)),IF(E93=4,\"4. Transformador\",IF(E93>1,\"3. Reactivo\",IF(E93<=1,\"Sin score. Favor revise sus respuestas SI\",\"\"))),IF(ISNUMBER(SEARCH(\"TRABAJÓ DENTRO\",$C$91)),IF(E93>=3,\"2. Complaciente\",IF(E93>=1,\"1. Simbólico\",\"0. No toma en cuenta\"))))))","v":""},"Número de respuestas SÍ",{"$f":"COUNTIF(F91:H92,\"Sí\")","v":0},null,null,null,null,null,"Kenya"]
["(Del indicador de resiliencia) Favor seleccione la afirmación que mejor describe las acciones de este año para incrementar la resiliencia este año fiscal\n\n(Una vez seleccionada su opción, afirmaciones de SÍ/NO aparecerán automáticamente en las celdas grises)",null,"(Seleccione de la lista)","Favor seleccione SÍ para todas las afirmaciones que apliquen al proyecto/iniciativa en este año fiscal",{"$f":"IF(ISNUMBER(SEARCH(\"NO\",$C$94)),\"ANÁLISIS: El proyecto/iniciativa carecía un análisis de riesgo y vulnerabilidad.\",IF(ISNUMBER(SEARCH(\".\",$C$94)),\"ANÁLISIS: El proyecto/iniciativa se sustentó en un análisis de riesgo y vulnerabilidad realizado con una consulta básica a interesados.\",IF(ISNUMBER(SEARCH(\"así\",$C$94)),\"ANÁLISIS: El proyecto/iniciativa se sustentó en un análisis participativo de riesgo y vulnerabilidad realizado con extensa consulta a los interesados.\",\"\")))","v":""},"(Seleccione de la lista)",{"$f":"IF(ISNUMBER(SEARCH(\"NO\",$C$94)),\"ACTIVIDADES: El proyecto/iniciativa no incluyó actividades para construir capacidades ni para incrementar los activos de individios y comunidades, para lidiar con shocks y stresses\",IF(ISNUMBER(SEARCH(\".\",$C$94)),\"ACTIVIDADES: El proyecto/iniciativa incluyó actividades para construir al menos 2 capacidades, al mismo tiempo que incrementar los activos de individuos y comunidades, para lidiar con shocks y stresses\",IF(ISNUMBER(SEARCH(\"así\",$C$94)),\"ACTIVIDADES: El proyecto/iniciativa incluyó una serie de actividades para construcción de todas las capacidades, así como el incremento significativo de activos de individuos y comunidades, para lidiar con shocks y stresses\",\"\")))","v":""},"(Seleccione de la lista)","Favor respalde sus respuestas usando el Marcador de Resiliencia. El Marcador de Resiliencia de CARE permite a todos los equipos autoevaluar la incorporación de la resiliencia en la programación, aspira apoyar a los equipos para evaluar en dónde se encuentran  dentro del continuo de incorporación de la resiliencia. Este proceso aspira motivar la participación con, y particularmente el aprendizaje de,  las formas de mejorar y apoyar más efectivamente la incorporación de la resiliencia dentro de toda nuestra programación, de acuerdo a las restricciones y oportunidades contextuales.\nLos elementos clave de CARE al definir la resiliencia: Capacidades y activos incrementados + Generadores de riesgo reducidos + Sistema socio-ecológico solidario = Desarrollo equitativo y resistente.\n\n\nPara una guía más detallada del indicador de Resiliencia, visite: http://careclimatechange.org/tool-kits/cares-resilience-marker/",null,"Kiribati"]
[null,null,null,null,{"$f":"IF(ISNUMBER(SEARCH(\"NO\",$C$94)),\"PANORAMA DE RIESGO: El proyecto/iniciativa no reconoció los factores conductores de riesgo ni apoyó el ambiente facilitador para la construcción de resiliencia\",IF(ISNUMBER(SEARCH(\".\",$C$94)),\"PANORAMA DE RIESGO: El proyecto/iniciativa previno concientemente la generación de nuevos factores conductores de riesgo y evitó afectar negativamente al ambiente facilitador para la construcción de resiliencia.\",IF(ISNUMBER(SEARCH(\"así\",$C$94)),\"PANORAMA DE RIESGO: El proyecto/iniciativa contruyó sobre la base del analisis, abordando los factores conductores de riesgo identificdos y apoyando el ambiente facilitador para la construcción de resiliencia\",\"\")))","v":""},"(Seleccione de la lista)",null,null,null,null,"Korea, North"]
["Puntaje del marcador de resiliencia",null,{"$f":"IF(ISNUMBER(SEARCH(\"Seleccione\",$C$94)),\"\",IF(ISNUMBER(SEARCH(\"NO\",$C$94)),\"0. Nocivo\",IF(ISNUMBER(SEARCH(\"así\",$C$94)),IF(E96=3,\"4. Transformador\",IF(E96>=1,\"3. Reactivo\",IF(E96=0,\"Sin score. Favor revise sus respuestas SI\",\"\"))),IF(ISNUMBER(SEARCH(\".\",$C$94)),IF(E96>=3,\"2. Sensible\",IF(E96>=1,\"1. Neutro\",\"0. Nocivo\"))))))","v":""},"Número de respuestas SÍ",{"$f":"COUNTIF(F94:H95,\"Sí\")","v":0},null,null,null,null,null,"Korea, South"]
["¿Hasta qué punto el proyecto/iniciativa tiene una estrategia para abordar las vulnerabilidades sociales y ambientales actuales y futuras causadas por el cambio climático? ",null,"(Seleccione de la lista)",null,null,null,null,null,"Abordó plenamente la vulnerabilidad causada por cambio climático: Las actividades y objetivos del proyecto/iniciativa abordaron directamente los desafíos identificados relacionados con el clima a través de un análisis de vulnerabilidad/riesgo. Abordó parcialmente la vulnerabilidad causada por el cambio climático: Las actividades y objetivos del proyecto/iniciativa responden a las causas principales de la vulnerabilidad, incluyendo los riesgos relacionados con el clima y el ambiente, pero no se ha llevado a cabo un análisis de vulnerabilidad debido al cambio climático. No contó con una estrategia para abordar la vulnerabilidad al cambio climático: Los riesgos y vulnerabilidades debido a cambio/climático no se han considerado en este proyecto/iniciativa.\n",null,"Kosovo"]
["¿Hasta qué punto se implementó el proyecto/iniciativa con  y/o a través de socios en este año?",null,"(Seleccione de la lista)",null,null,null,null,null,null,null,"Kuwait"]
["Favor indique el número de socios con los cuales trabajó en el proyecto/iniciativa en este año fiscal. \n(Favor sólo incluya socios con un acuerdo formal)",null,null,null,null,null,null,null,null,null,"Kyrgyzstan"]
["Favor seleccione de la lista los tres tipos de socios principales para este año fiscal, en orden de importancia (el primero siendo el más importante). Si hay menos de tres, deje en blanco",null,"Tipo de socio",null,null,null,null,null,null,null,"Laos"]
[null,null,"(Seleccione de la lista)",null,null,null,null,null,null,null,"Latvia"]
[null,null,"(Seleccione de la lista)",null,null,null,null,null,null,null,"Lebanon"]
[null,null,"(Seleccione de la lista)",null,null,null,null,null,null,null,"Lesotho"]
["¿En qué medida el proyecto contribuyó a fortalecer la sociedad civil en este año fiscal?",null,"(Seleccione de la lista)",null,null,"Favor comparta algún ejemplo de los tipos de apoyo y/o actividades que CARE ha proporcionado para fortalecer a la sociedad civil en este año",null,null,"La sociedad civil incluye todos los actores diferenciados de hogar, comercio y autoridades, y apunta informar y organizar ciudadanos, sus miembros o un distrito específico, para dar voz a sus inquietudes, defender sus intereses y/o defender sus derechos. Estos actores son grupos formales e informales, redes, organismos, movimientos y otras formas colectivas de asociación, estén o no registrados legalmente como organizaciones de la sociedad civil por las autoridades. Pueden incluir OSC/ONG locales/regionales/mundiales, organismos comunitarios y religiosos, sindicatos, asociaciones gremiales, medios sin fines de lucro, redes comunitarias, movimientos sociales, asociaciones de ciudadanos o consumidores, institutos de investigación no estatales, grupos de expertos, etc.",null,"Liberia"]
["Favor describa cambios importantes o ajustes que el proyecto tuvo en este año fiscal, como resultado de reflexiones acerca de los roles que juega CARE y el enfoque. \n\n(Por ejemplo: Ha hecho ajustes el proyecto a sus objetivos y actividades, para aumentar su impacto en la igualdad de género?)",null,null,null,null,null,null,null,"Incluye cambios en cualquiera de los siguientes: 1) objetivos del proyecto y resultados esperados, 2) planificación e implementación de actividades, 3) seguimiento y evaluación, 3) capacidades y roles del personal, 4) cambios de cómo los participantes dan retroalimentación o toman decisiones relacionadas al proyecto.",null,"Libya"]
["En base a sus evaluaciones, reflexiones y diálogo acerca del proyecto/iniciativa describa las tres estrategias o modelos principales más efectivos/con más impacto que contribuyan a sus objetivos (ej. \"involucrar a hombres\",\"VSLA\", \"Community Score Cards\", \"planificación comunitaria\", \"escuelas de campo\", etc.)",null,null,null,null,null,null,null,null,null,"Liechtenstein"]
[null,null,null,null,null,null,null,null,null,null,"Lithuania"]
[null,null,null,null,null,null,null,null,null,null,"Luxembourg"]
["¿Cuáles fueron las tres lecciones principales de este año fiscal? Favor comparta cualquier práctica, desafío o aprendizaje prometedor.",null,null,null,null,null,null,null,null,null,"Macau"]
[null,null,null,null,null,null,null,null,null,null,"Macedonia"]
[null,null,null,null,null,null,null,null,null,null,"Madagascar"]
["Favor comparta cualquier comentario adicional que pueda tener acerca de la implementación del proyecto/iniciativa de este año, o cualquier dato proporcionado en este formulario",null,null,null,null,null,null,null,null,null,"Malawi"]
[null,null,null,null,null,null,null,null,null,null,"Malaysia"]
["Favor proporcione referencias de cualquiera de los documentos clave y/o links del proyecto/iniciativa, relacionadas con la información dada en este formulario: propuesta, marco lógico, informes de avance, evaluaciones, formularios de investigación de los indicadores, etc.",null,null,null,null,null,null,null,null,null,"Maldives"]
[null,null,null,null,null,null,null,null,null,null,"Mali"]
["¡Gracias por brindar la información y completar el formulario de ALCANCE!\nFavor revise a continuación el resumen de los datos claves documentados. Si encuentra cualquier inconsistencia en el resumen, favor modifíquelos debidamente en el formulario.\nSi marcó SÍ en la celda C77, asegúrese de completar el formulario de IMPACTO.",null,null,null,null,null,null,null,null,null,"Malta"]
[null,null,null,null,null,null,null,null,null,null,"Marshall Islands"]
["Resumen de los datos claves documentados, enfocados en la Estrategia CARE 2020",null,null,null,null,null,null,null,null,null,"Mauritania"]
["Total de Participantes del año fiscal 2017",null,"Directo",{"$f":"MAX(H37,H55)","v":0},"Indirecto",{"$f":"MAX(H38,H56)","v":0},"Proporción de Participantes Indirectos/Directos",{"$f":"IFERROR(F119/D119,\"\")","v":""},null,null,"Mauritius"]
["% mujeres del total de participantes",null,"Directo",{"$f":"IFERROR(MAX(D37,D55)/D119,\"\")","v":""},"Indirecto",{"$f":"IFERROR(MAX(D38,D56)/F119,\"\")","v":""},null,null,null,null,"Mexico"]
["Total de Participantes por Resultado de la Estrategia de Programas","Humanitario","Directo",{"$f":"H37","v":0},"Indirecto",{"$f":"H38","v":0},"Proporción de Participantes Indirectos/Directos",{"$f":"IFERROR(F121/D121,\"\")","v":""},"• Asistencia Humanitaria: No se requiere procesar más datos para analizar el alcance de este resultado. \n- El alcance total de los resultados humanitarios incluye el total de participantes beneficiados por todos los proyectos e iniciativas del año fiscal. \n- El alcance humanitario de las prioridades de la Estrategia Humanitaria de CARE y de la Estrategia de Programa CARE 2020 (vivienda, WASH, seguridad alimenticia y nutricional, SRMH, el derecho a una vida libre de violencia, y recuperación de sustentos) se obtiene de los datos sectoriales directamente, sin otros procesos.",null,"Micronesia"]
[null,"Seguridad Alimenticia y Nutricional y Resiliencia frente al Cambio Climático","Directo",{"$f":"MAX(F44,F48,F59,F60,F62,F63,F65,F70,F73)","v":0},"Indirecto",{"$f":"MAX(H44,H48,H59,H60,H62,H63,H65,H70,H73)","v":0},"Proporción de Participantes Indirectos/Directos",{"$f":"IFERROR(F122/D122,\"\")","v":""},"• Seguridad Alimenticia y Nutricional & Resiliencia frente al Cambio Climático: Se requiere procesar datos adicionales para analizar el alcance de este resultado. Es una combinación de datos de los siguientes sectores: Humanitario y de desarrollo, seguridad alimenticia y nutricional, recuperación humanitaria de sustentos, agricultura de desarrollo, desarrollo en cambio climático y resiliencia, desarrollo en reducción de riesgos de desastres, desarrollo de economía en desarrollo, desarrollo de gestión de recursos naturales, desarrollo de WASH, así como proyectos de salud vinculados a la nutrición. ",null,"Moldova"]
[null,"Derechos y Salud Sexual, Reproductiva y Materna","Directo",{"$f":"MAX(F50,F72)","v":0},"Indirecto",{"$f":"MAX(H50,H72)","v":0},"Proporción de Participantes Indirectos/Directos",{"$f":"IFERROR(F123/D123,\"\")","v":""},"• Derechos de Salud Sexual, Reproductiva y Materna: Se requiere procesar datos adicionales para analizar el alcance de este resultado. Es una combinación de datos de los sectores de desarrollo y humanitarios de SRMH. \n\n",null,"Monaco"]
[null,"Una Vida Libre de Violencia","Directo",{"$f":"MAX(F45,F66)","v":0},"Indirecto",{"$f":"MAX(H45,H66)","v":0},"Proporción de Participantes Indirectos/Directos",{"$f":"IFERROR(F124/D124,\"\")","v":""},"• El Derecho a una Vida Libre de Violencia: Se requiere procesar datos adicionales para analizar el alcance de este resultado. Es una combinación de datos de los sectores de desarrollo y humanitarios de Violencia de Género. \n",null,"Mongolia"]
[null,"Empoderamiento Económico de la Mujer","Directo",{"$f":"IFERROR(MAX((F63*G63),F74),\"\")","v":0},"Indirecto",{"$f":"IFERROR(MAX((H63*G63),H74),\"\")","v":0},"Proporción de Participantes Indirectos/Directos",{"$f":"IFERROR(F125/D125,\"\")","v":""},"• Empoderamiento Económico de la Mujer (WEE): Se requiere procesar datos adicionales para analizar este resultado. Es una combinación de datos del sector de desarrollo WEE y de las mujeres beneficiadas por el sector de desarrollo económico (ED).",null,"Montenegro"]
["Integración del Enfoque de CARE",null,"Género",{"$f":"C90","v":""},"Gobernabilidad",{"$f":"C93","v":""},"Resiliencia",{"$f":"C96","v":""},null,null,"Morocco"]
["Impacto Multiplicador",null,"Innovación",null,"Incidencia",null,"Escala",null,null,null,"Mozambique"]
[null,null,{"$f":"C85","v":"(Seleccione de la lista)"},null,{"$f":"C81","v":"(Seleccione de la lista)"},null,{"$f":"C86","v":"(Seleccione de la lista)"},null,null,null,"Myanmar"]
[null,null,null,null,null,null,null,null,null,null,"Namibia"]
[null,null,null,null,null,null,null,null,null,null,"Nauru"]
[null,null,null,null,null,null,null,null,null,null,"Nepal"]
[null,null,null,null,null,null,null,null,null,null,"Netherlands"]
[null,null,null,null,null,null,null,null,null,null,"Netherlands Antilles"]
[null,null,null,null,null,null,null,null,null,null,"New Zealand"]
[null,null,null,null,null,null,null,null,null,null,"Nicaragua"]
[null,null,null,null,null,null,null,null,null,null,"Niger"]
[null,null,null,null,null,null,null,null,null,null,"Nigeria"]
[null,null,null,null,null,null,null,null,null,null,"Norway"]
[null,null,null,null,null,null,null,null,null,null,"Oman"]
[null,null,null,null,null,null,null,null,null,null,"Pakistan"]
[null,null,null,null,null,null,null,null,null,null,"Palau"]
[null,null,null,null,null,null,null,null,null,null,"Palestinian Territories"]
[null,null,null,null,null,null,null,null,null,null,"Panama"]
[null,null,null,null,null,null,null,null,null,null,"Papua New Guinea"]
[null,null,null,null,null,null,null,null,null,null,"Paraguay"]
[null,null,null,null,null,null,null,null,null,null,"Peru"]
[null,null,null,null,null,null,null,null,null,null,"Philippines"]
[null,null,null,null,null,null,null,null,null,null,"Poland"]
[null,null,null,null,null,null,null,null,null,null,"Portugal"]
[null,null,null,null,null,null,null,null,null,null,"Qatar"]
[null,null,null,null,null,null,null,null,null,null,"Romania"]
[null,null,null,null,null,null,null,null,null,null,"Russia"]
[null,null,null,null,null,null,null,null,null,null,"Rwanda"]
[null,null,null,null,null,null,null,null,null,null,"Saint Kitts and Nevis"]
[null,null,null,null,null,null,null,null,null,null,"Saint Lucia"]
[null,null,null,null,null,null,null,null,null,null,"Saint Vincent and the Grenadines"]
[null,null,null,null,null,null,null,null,null,null,"Samoa"]
[null,null,null,null,null,null,null,null,null,null,"San Marino"]
[null,null,null,null,null,null,null,null,null,null,"Sao Tome and Principe"]
[null,null,null,null,null,null,null,null,null,null,"Saudi Arabia"]
[null,null,null,null,null,null,null,null,null,null,"Senegal"]
[null,null,null,null,null,null,null,null,null,null,"Serbia"]
[null,null,null,null,null,null,null,null,null,null,"Seychelles"]
[null,null,null,null,null,null,null,null,null,null,"Sierra Leone"]
[null,null,null,null,null,null,null,null,null,null,"Singapore"]
[null,null,null,null,null,null,null,null,null,null,"Sint Maarten"]
[null,null,null,null,null,null,null,null,null,null,"Slovakia"]
[null,null,null,null,null,null,null,null,null,null,"Slovenia"]
[null,null,null,null,null,null,null,null,null,null,"Solomon Islands"]
[null,null,null,null,null,null,null,null,null,null,"Somalia"]
[null,null,null,null,null,null,null,null,null,null,"South Africa"]
[null,null,null,null,null,null,null,null,null,null,"South Sudan"]
[null,null,null,null,null,null,null,null,null,null,"Spain"]
[null,null,null,null,null,null,null,null,null,null,"Sri Lanka"]
[null,null,null,null,null,null,null,null,null,null,"Sudan"]
[null,null,null,null,null,null,null,null,null,null,"Suriname"]
[null,null,null,null,null,null,null,null,null,null,"Swaziland"]
[null,null,null,null,null,null,null,null,null,null,"Sweden"]
[null,null,null,null,null,null,null,null,null,null,"Switzerland"]
[null,null,null,null,null,null,null,null,null,null,"Syria"]
[null,null,null,null,null,null,null,null,null,null,"Taiwan"]
[null,null,null,null,null,null,null,null,null,null,"Tajikistan"]
[null,null,null,null,null,null,null,null,null,null,"Tanzania"]
[null,null,null,null,null,null,null,null,null,null,"Thailand"]
[null,null,null,null,null,null,null,null,null,null,"Timor-Leste"]
[null,null,null,null,null,null,null,null,null,null,"Togo"]
[null,null,null,null,null,null,null,null,null,null,"Tonga"]
[null,null,null,null,null,null,null,null,null,null,"Trinidad and Tobago"]
[null,null,null,null,null,null,null,null,null,null,"Tunisia"]
[null,null,null,null,null,null,null,null,null,null,"Turkey"]
[null,null,null,null,null,null,null,null,null,null,"Turkmenistan"]
[null,null,null,null,null,null,null,null,null,null,"Tuvalu"]
[null,null,null,null,null,null,null,null,null,null,"Uganda"]
[null,null,null,null,null,null,null,null,null,null,"Ukraine"]
[null,null,null,null,null,null,null,null,null,null,"United Arab Emirates"]
[null,null,null,null,null,null,null,null,null,null,"United Kingdom"]
[null,null,null,null,null,null,null,null,null,null,"United States of America"]
[null,null,null,null,null,null,null,null,null,null,"Uruguay"]
[null,null,null,null,null,null,null,null,null,null,"Uzbekistan"]
[null,null,null,null,null,null,null,null,null,null,"Vanuatu"]
[null,null,null,null,null,null,null,null,null,null,"Venezuela"]
[null,null,null,null,null,null,null,null,null,null,"Vietnam"]
[null,null,null,null,null,null,null,null,null,null,"West Bank and Gaza"]
[null,null,null,null,null,null,null,null,null,null,"Yemen"]
[null,null,null,null,null,null,null,null,null,null,"Zambia"]
[null,null,null,null,null,null,null,null,null,null,"Zimbabwe"]